[Event "December 12 Early 2023"]
[Site "https://www.chess.com"]
[Date "2023.12.12"]
[Round "11"]
[White "Krysa, Leandro"]
[Black "Herman, Matthew"]
[Result "1-0"]
[Board "67"]
[TimeControl "180+1"]
[WhiteFideId "116807"]
[BlackFideId "2028964"]
[WhiteElo "2706"]
[BlackElo "2503"]
[WhiteTeam "ARG"]
[BlackTeam "USA"]
[WhiteClock "0:00:20"]
[BlackClock "0:00:00"]

1. e4 {[%clk 0:03:00]}  e5 {[%clk 0:02:57]} 2. Nf3 {[%clk 0:03:00]}  Nc6 {[%clk 0:02:57]} 3. Bc4 {[%clk 0:03:01]}  Nf6 {[%clk 0:02:57]} 4. d3 {[%clk 0:03:01]}  Be7 {[%clk 0:02:57]} 5. O-O {[%clk 0:02:58]}  O-O {[%clk 0:02:57]} 6. a4 {[%clk 0:02:58]}  a5 {[%clk 0:02:58]} 7. Nc3 {[%clk 0:02:57]}  d6 {[%clk 0:02:58]} 8. h3 {[%clk 0:02:57]}  Kh8 {[%clk 0:02:58]} 9. Ng5 {[%clk 0:02:46]}  Qe8 {[%clk 0:02:36]} 10. f4 {[%clk 0:02:42]}  h6 {[%clk 0:02:13]} 11. Nf3 {[%clk 0:02:37]}  Be6 {[%clk 0:01:52]} 12. Bxe6 {[%clk 0:02:28]}  fxe6 {[%clk 0:01:52]} 13. fxe5 {[%clk 0:02:29]}  dxe5 {[%clk 0:01:46]} 14. Be3 {[%clk 0:02:28]}  Rd8 {[%clk 0:01:16]} 15. Qe1 {[%clk 0:02:12]}  Nh5 {[%clk 0:01:11]} 16. Nb5 {[%clk 0:02:09]}  Rd7 {[%clk 0:01:06]} 17. Kh2 {[%clk 0:01:41]}  Kh7 {[%clk 0:00:46]} 18. g4 {[%clk 0:01:33]}  Nf4 {[%clk 0:00:28]} 19. Nxe5 {[%clk 0:01:31]}  Nxe5 {[%clk 0:00:28]} 20. Bxf4 {[%clk 0:01:27]}  Ng6 {[%clk 0:00:19]} 21. Bg3 {[%clk 0:01:27]}  Rxf1 {[%clk 0:00:09]} 22. Qxf1 {[%clk 0:01:28]}  e5 {[%clk 0:00:08]} 23. Qf5 {[%clk 0:01:27]}  Bd6 {[%clk 0:00:07]} 24. Rf1 {[%clk 0:01:24]}  Kg8 {[%clk 0:00:06]} 25. Qh5 {[%clk 0:01:04]}  Bc5 {[%clk 0:00:03]} 26. g5 {[%clk 0:00:48]}  c6 {[%clk 0:00:02]} 27. Na3 {[%clk 0:00:43]}  hxg5 {[%clk 0:00:03]} 28. Qxg5 {[%clk 0:00:41]}  Bxa3 {[%clk 0:00:04]} 29. bxa3 {[%clk 0:00:41]}  Qe6 {[%clk 0:00:05]} 30. Qf5 {[%clk 0:00:38]}  Qe8 {[%clk 0:00:05]} 31. h4 {[%clk 0:00:31]}  Re7 {[%clk 0:00:05]} 32. h5 {[%clk 0:00:30]}  Nf8 {[%clk 0:00:06]} 33. Bh4 {[%clk 0:00:28]}  Re6 {[%clk 0:00:07]} 34. Rg1 {[%clk 0:00:25]}  g6 {[%clk 0:00:05]} 35. hxg6 {[%clk 0:00:23]}  Nxg6 {[%clk 0:00:00]} 36. Bf6 {[%clk 0:00:20]} 1-0

[Event "December 12 Early 2023"]
[Site "https://www.chess.com"]
[Date "2023.12.12"]
[Round "11"]
[White "Arslanov, Shamil"]
[Black "Wanyama, Harold"]
[Result "0-1"]
[Board "68"]
[TimeControl "180+1"]
[WhiteFideId "4192826"]
[BlackFideId "10000380"]
[WhiteElo "2705"]
[BlackElo "2502"]
[WhiteTeam "RUS"]
[BlackTeam "UGA"]
[WhiteClock "0:00:00"]
[BlackClock "0:00:13"]

1. e4 {[%clk 0:03:00]}  c5 {[%clk 0:02:48]} 2. a3 {[%clk 0:02:51]}  Nc6 {[%clk 0:02:43]} 3. b4 {[%clk 0:02:50]}  cxb4 {[%clk 0:02:43]} 4. axb4 {[%clk 0:02:50]}  Nxb4 {[%clk 0:02:43]} 5. c3 {[%clk 0:02:50]}  Nc6 {[%clk 0:02:43]} 6. d4 {[%clk 0:02:51]}  d5 {[%clk 0:02:41]} 7. exd5 {[%clk 0:02:52]}  Qxd5 {[%clk 0:02:40]} 8. Na3 {[%clk 0:02:52]}  Qd8 {[%clk 0:02:28]} 9. d5 {[%clk 0:02:50]}  Ne5 {[%clk 0:02:20]} 10. Bf4 {[%clk 0:02:43]}  Ng6 {[%clk 0:02:17]} 11. Bg3 {[%clk 0:02:33]}  e5 {[%clk 0:02:17]} 12. Nf3 {[%clk 0:01:53]}  Bd6 {[%clk 0:02:04]} 13. Nb5 {[%clk 0:01:38]}  Nf6 {[%clk 0:02:03]} 14. Bd3 {[%clk 0:01:30]}  O-O {[%clk 0:02:01]} 15. Bxg6 {[%clk 0:00:57]}  hxg6 {[%clk 0:02:00]} 16. c4 {[%clk 0:00:34]}  Bb4+ {[%clk 0:01:54]} 17. Kf1 {[%clk 0:00:29]}  e4 {[%clk 0:01:49]} 18. Nfd4 {[%clk 0:00:19]}  a6 {[%clk 0:01:45]} 19. Nc7 {[%clk 0:00:19]}  Ra7 {[%clk 0:01:37]} 20. Ndb5 {[%clk 0:00:17]}  axb5 {[%clk 0:01:34]} 21. Rxa7 {[%clk 0:00:17]}  bxc4 {[%clk 0:01:34]} 22. Qd4 {[%clk 0:00:17]}  Bd6 {[%clk 0:01:13]} 23. Nb5 {[%clk 0:00:13]}  Bxg3 {[%clk 0:01:07]} 24. hxg3 {[%clk 0:00:14]}  Qxd5 {[%clk 0:01:02]} 25. Qxd5 {[%clk 0:00:14]}  Nxd5 {[%clk 0:01:02]} 26. f3 {[%clk 0:00:11]}  e3 {[%clk 0:00:55]} 27. g4 {[%clk 0:00:11]}  f5 {[%clk 0:00:49]} 28. gxf5 {[%clk 0:00:10]}  Bxf5 {[%clk 0:00:48]} 29. Rh4 {[%clk 0:00:07]}  Bd3+ {[%clk 0:00:46]} 30. Ke1 {[%clk 0:00:08]}  c3 {[%clk 0:00:42]} 31. Nxc3 {[%clk 0:00:06]}  Nxc3 {[%clk 0:00:42]} 32. Ra3 {[%clk 0:00:04]}  Rc8 {[%clk 0:00:39]} 33. Rd4 {[%clk 0:00:05]}  Ba6 {[%clk 0:00:36]} 34. Rd7 {[%clk 0:00:02]}  e2 {[%clk 0:00:32]} 35. Ra1 {[%clk 0:00:02]}  g5 {[%clk 0:00:28]} 36. Rd4 {[%clk 0:00:02]}  Nd1 {[%clk 0:00:25]} 37. Rd2 {[%clk 0:00:01]}  Ne3 {[%clk 0:00:24]} 38. Kf2 {[%clk 0:00:01]}  Nc2 {[%clk 0:00:21]} 39. Rc1 {[%clk 0:00:02]}  e1=Q+ {[%clk 0:00:20]} 40. Rxe1 {[%clk 0:00:02]}  Nxe1 {[%clk 0:00:21]} 41. Kxe1 {[%clk 0:00:03]}  Re8+ {[%clk 0:00:20]} 42. Kf2 {[%clk 0:00:02]}  Re7 {[%clk 0:00:20]} 43. Rd5 {[%clk 0:00:02]}  g4 {[%clk 0:00:19]} 44. fxg4 {[%clk 0:00:03]}  Re2+ {[%clk 0:00:17]} 45. Kf3 {[%clk 0:00:03]}  Rb2 {[%clk 0:00:18]} 46. Rd7 {[%clk 0:00:03]}  Bb5 {[%clk 0:00:17]} 47. Rc7 {[%clk 0:00:02]}  Bc6+ {[%clk 0:00:17]} 48. Kf4 {[%clk 0:00:03]}  Rxg2 {[%clk 0:00:15]} 49. Kf5 {[%clk 0:00:03]}  Kh7 {[%clk 0:00:15]} 50. Re7 {[%clk 0:00:02]}  Rf2+ {[%clk 0:00:15]} 51. Kg5 {[%clk 0:00:02]}  Rf6 {[%clk 0:00:13]} 52. Rc7 {[%clk 0:00:00]}  b5 {[%clk 0:00:13]} 0-1

[Event "December 12 Early 2023"]
[Site "https://www.chess.com"]
[Date "2023.12.12"]
[Round "11"]
[White "Azali, Tannaz"]
[Black "Wu, Derek"]
[Result "0-1"]
[Board "69"]
[TimeControl "180+1"]
[WhiteFideId "12537721"]
[BlackFideId "30914558"]
[WhiteElo "2496"]
[BlackElo "2678"]
[WhiteTeam "IRI"]
[BlackTeam "USA"]
[WhiteClock "0:01:42"]
[BlackClock "0:01:31"]

1. e4 {[%clk 0:03:00]}  e6 {[%clk 0:03:00]} 2. d4 {[%clk 0:03:01]}  d5 {[%clk 0:03:01]} 3. Nc3 {[%clk 0:03:00]}  Nf6 {[%clk 0:02:59]} 4. e5 {[%clk 0:03:00]}  Nfd7 {[%clk 0:03:00]} 5. f4 {[%clk 0:03:00]}  c5 {[%clk 0:03:00]} 6. Nf3 {[%clk 0:03:01]}  Nc6 {[%clk 0:03:01]} 7. Be3 {[%clk 0:03:00]}  Qb6 {[%clk 0:03:01]} 8. Qd2 {[%clk 0:02:58]}  Qxb2 {[%clk 0:03:00]} 9. Rb1 {[%clk 0:02:31]}  Qa3 {[%clk 0:03:00]} 10. Bb5 {[%clk 0:02:28]}  c4 {[%clk 0:02:49]} 11. O-O {[%clk 0:02:22]}  Bb4 {[%clk 0:02:47]} 12. Rxb4 {[%clk 0:02:21]}  Qxb4 {[%clk 0:02:47]} 13. Bxc6 {[%clk 0:02:22]}  bxc6 {[%clk 0:02:46]} 14. f5 {[%clk 0:02:22]}  exf5 {[%clk 0:02:15]} 15. Qe1 {[%clk 0:02:20]}  Nf8 {[%clk 0:02:05]} 16. Bd2 {[%clk 0:02:20]}  Qe7 {[%clk 0:02:00]} 17. Qg3 {[%clk 0:02:16]}  Ng6 {[%clk 0:01:57]} 18. h4 {[%clk 0:02:12]}  f4 {[%clk 0:01:49]} 19. Bxf4 {[%clk 0:02:11]}  Nxf4 {[%clk 0:01:49]} 20. Qxf4 {[%clk 0:02:12]}  h6 {[%clk 0:01:44]} 21. Na4 {[%clk 0:02:05]}  Qe6 {[%clk 0:01:42]} 22. Nc5 {[%clk 0:02:02]}  Qg4 {[%clk 0:01:42]} 23. Qe3 {[%clk 0:02:01]}  O-O {[%clk 0:01:41]} 24. c3 {[%clk 0:01:57]}  Rb8 {[%clk 0:01:39]} 25. Rf2 {[%clk 0:01:52]}  Rb1+ {[%clk 0:01:36]} 26. Kh2 {[%clk 0:01:52]}  Be6 {[%clk 0:01:33]} 27. Nd2 {[%clk 0:01:42]}  Qxh4+ {[%clk 0:01:31]} 0-1

[Event "December 12 Early 2023"]
[Site "https://www.chess.com"]
[Date "2023.12.12"]
[Round "11"]
[White "Belov, Alexei"]
[Black "Mestnikov, Aisen"]
[Result "1-0"]
[Board "75"]
[TimeControl "180+1"]
[WhiteFideId "4128206"]
[BlackFideId "34130117"]
[WhiteElo "2564"]
[BlackElo "2463"]
[WhiteTeam "RUS"]
[BlackTeam "RUS"]
[WhiteClock "0:00:29"]
[BlackClock "0:00:12"]

1. e4 {[%clk 0:03:00]}  e5 {[%clk 0:02:59]} 2. Nf3 {[%clk 0:02:59]}  Nc6 {[%clk 0:02:59]} 3. Bb5 {[%clk 0:03:00]}  a6 {[%clk 0:02:59]} 4. Ba4 {[%clk 0:03:00]}  Nge7 {[%clk 0:02:59]} 5. O-O {[%clk 0:02:58]}  g6 {[%clk 0:02:59]} 6. d4 {[%clk 0:02:58]}  exd4 {[%clk 0:03:00]} 7. Nxd4 {[%clk 0:02:58]}  Bg7 {[%clk 0:03:00]} 8. Nxc6 {[%clk 0:02:54]}  Nxc6 {[%clk 0:02:58]} 9. Nc3 {[%clk 0:02:51]}  O-O {[%clk 0:02:57]} 10. Nd5 {[%clk 0:02:42]}  b5 {[%clk 0:02:53]} 11. Bb3 {[%clk 0:02:42]}  Nd4 {[%clk 0:02:54]} 12. c3 {[%clk 0:02:37]}  Nxb3 {[%clk 0:02:53]} 13. axb3 {[%clk 0:02:34]}  Bb7 {[%clk 0:02:53]} 14. Be3 {[%clk 0:02:27]}  Re8 {[%clk 0:02:45]} 15. f3 {[%clk 0:02:24]}  Re6 {[%clk 0:01:56]} 16. Qd2 {[%clk 0:02:15]}  Bxd5 {[%clk 0:01:12]} 17. Qxd5 {[%clk 0:02:12]}  Rd6 {[%clk 0:01:12]} 18. Qc5 {[%clk 0:02:05]}  Bf8 {[%clk 0:01:08]} 19. Qe5 {[%clk 0:02:01]}  Bg7 {[%clk 0:01:06]} 20. Qf4 {[%clk 0:01:55]}  Rd3 {[%clk 0:00:58]} 21. Rfd1 {[%clk 0:01:51]}  Rxd1+ {[%clk 0:00:54]} 22. Rxd1 {[%clk 0:01:51]}  d6 {[%clk 0:00:54]} 23. b4 {[%clk 0:01:47]}  a5 {[%clk 0:00:53]} 24. bxa5 {[%clk 0:01:44]}  Rxa5 {[%clk 0:00:52]} 25. e5 {[%clk 0:01:43]}  Ra4 {[%clk 0:00:20]} 26. Qg3 {[%clk 0:01:30]}  Qe7 {[%clk 0:00:19]} 27. f4 {[%clk 0:01:21]}  dxe5 {[%clk 0:00:19]} 28. f5 {[%clk 0:01:18]}  Ra8 {[%clk 0:00:14]} 29. Bg5 {[%clk 0:01:13]}  Bf6 {[%clk 0:00:13]} 30. Bxf6 {[%clk 0:01:08]}  Qxf6 {[%clk 0:00:13]} 31. Rf1 {[%clk 0:01:09]}  Re8 {[%clk 0:00:07]} 32. Qd3 {[%clk 0:01:04]}  Qb6+ {[%clk 0:00:03]} 33. Kh1 {[%clk 0:01:04]}  e4 {[%clk 0:00:04]} 34. Qd7 {[%clk 0:01:04]}  Rf8 {[%clk 0:00:02]} 35. Qe7 {[%clk 0:00:58]}  Qd6 {[%clk 0:00:01]} 36. Qxe4 {[%clk 0:00:56]}  Qc5 {[%clk 0:00:02]} 37. f6 {[%clk 0:00:52]}  Qc4 {[%clk 0:00:02]} 38. Qf3 {[%clk 0:00:45]}  Kh8 {[%clk 0:00:01]} 39. h3 {[%clk 0:00:45]}  h5 {[%clk 0:00:01]} 40. Re1 {[%clk 0:00:43]}  Kh7 {[%clk 0:00:02]} 41. Re7 {[%clk 0:00:38]}  b4 {[%clk 0:00:02]} 42. Re4 {[%clk 0:00:34]}  Qd5 {[%clk 0:00:01]} 43. Rxb4 {[%clk 0:00:34]}  Qxf3 {[%clk 0:00:01]} 44. gxf3 {[%clk 0:00:34]}  Re8 {[%clk 0:00:02]} 45. Rc4 {[%clk 0:00:33]}  Re6 {[%clk 0:00:02]} 46. Rxc7 {[%clk 0:00:32]}  Re1+ {[%clk 0:00:02]} 47. Kg2 {[%clk 0:00:32]}  Re2+ {[%clk 0:00:03]} 48. Kg3 {[%clk 0:00:32]}  Rxb2 {[%clk 0:00:04]} 49. Rxf7+ {[%clk 0:00:33]}  Kh8 {[%clk 0:00:04]} 50. Rg7 {[%clk 0:00:27]}  Rc2 {[%clk 0:00:05]} 51. Rxg6 {[%clk 0:00:26]}  Rxc3 {[%clk 0:00:06]} 52. f7 {[%clk 0:00:25]}  Rc8 {[%clk 0:00:03]} 53. Rg8+ {[%clk 0:00:25]}  Rxg8+ {[%clk 0:00:03]} 54. fxg8=Q+ {[%clk 0:00:25]}  Kxg8 {[%clk 0:00:04]} 55. Kh4 {[%clk 0:00:26]}  Kg7 {[%clk 0:00:05]} 56. Kxh5 {[%clk 0:00:26]}  Kf6 {[%clk 0:00:06]} 57. Kg4 {[%clk 0:00:26]}  Kg6 {[%clk 0:00:06]} 58. f4 {[%clk 0:00:27]}  Kf6 {[%clk 0:00:07]} 59. h4 {[%clk 0:00:28]}  Kg6 {[%clk 0:00:07]} 60. h5+ {[%clk 0:00:29]}  Kh6 {[%clk 0:00:08]} 61. f5 {[%clk 0:00:29]}  Kg7 {[%clk 0:00:08]} 62. Kg5 {[%clk 0:00:30]}  Kh7 {[%clk 0:00:09]} 63. f6 {[%clk 0:00:30]}  Kg8 {[%clk 0:00:10]} 64. Kg6 {[%clk 0:00:31]}  Kh8 {[%clk 0:00:10]} 65. h6 {[%clk 0:00:31]}  Kg8 {[%clk 0:00:11]} 66. f7+ {[%clk 0:00:29]}  Kh8 {[%clk 0:00:12]} 67. f8=Q# {[%clk 0:00:29]} 1-0

[Event "December 12 Early 2023"]
[Site "https://www.chess.com"]
[Date "2023.12.12"]
[Round "11"]
[White "YurasovMat-2012"]
[Black "Ginzburg, Yakov"]
[Result "0-1"]
[Board "76"]
[TimeControl "180+1"]
[BlackFideId "4157176"]
[WhiteElo "2458"]
[BlackElo "2552"]
[BlackTeam "RUS"]
[WhiteClock "0:01:06"]
[BlackClock "0:00:47"]

1. e4 {[%clk 0:03:00]}  c5 {[%clk 0:02:59]} 2. Nf3 {[%clk 0:03:00]}  e6 {[%clk 0:03:00]} 3. g3 {[%clk 0:02:59]}  d5 {[%clk 0:03:00]} 4. exd5 {[%clk 0:02:59]}  exd5 {[%clk 0:03:00]} 5. Bg2 {[%clk 0:02:59]}  Nf6 {[%clk 0:03:01]} 6. O-O {[%clk 0:02:57]}  Be7 {[%clk 0:03:01]} 7. d4 {[%clk 0:02:56]}  cxd4 {[%clk 0:03:01]} 8. Nxd4 {[%clk 0:02:56]}  O-O {[%clk 0:03:01]} 9. Re1 {[%clk 0:02:56]}  Nc6 {[%clk 0:03:01]} 10. c4 {[%clk 0:02:56]}  Nxd4 {[%clk 0:02:59]} 11. Qxd4 {[%clk 0:02:55]}  dxc4 {[%clk 0:02:59]} 12. Qxd8 {[%clk 0:02:54]}  Bxd8 {[%clk 0:02:59]} 13. Nc3 {[%clk 0:02:54]}  a6 {[%clk 0:02:52]} 14. Be3 {[%clk 0:02:51]}  Bc7 {[%clk 0:02:33]} 15. Bc5 {[%clk 0:02:48]}  Rd8 {[%clk 0:02:15]} 16. Rad1 {[%clk 0:02:43]}  Rxd1 {[%clk 0:02:09]} 17. Rxd1 {[%clk 0:02:44]}  Rb8 {[%clk 0:02:07]} 18. Ba7 {[%clk 0:02:31]}  Ra8 {[%clk 0:02:07]} 19. Bd4 {[%clk 0:02:18]}  Bg4 {[%clk 0:01:39]} 20. Re1 {[%clk 0:02:13]}  Rd8 {[%clk 0:01:34]} 21. Be5 {[%clk 0:02:08]}  Bxe5 {[%clk 0:01:32]} 22. Rxe5 {[%clk 0:02:08]}  b5 {[%clk 0:01:31]} 23. h3 {[%clk 0:02:08]}  Be6 {[%clk 0:01:30]} 24. Rc5 {[%clk 0:02:04]}  Rd2 {[%clk 0:01:22]} 25. b3 {[%clk 0:01:43]}  b4 {[%clk 0:01:19]} 26. Na4 {[%clk 0:01:39]}  c3 {[%clk 0:01:17]} 27. Bf3 {[%clk 0:01:35]}  g6 {[%clk 0:01:14]} 28. Kg2 {[%clk 0:01:33]}  Rxa2 {[%clk 0:01:11]} 29. Rc6 {[%clk 0:01:31]}  Bxb3 {[%clk 0:01:09]} 30. Nc5 {[%clk 0:01:29]}  Bc4 {[%clk 0:01:08]} 31. Nb7 {[%clk 0:01:19]}  Bd5 {[%clk 0:01:01]} 32. Rxf6 {[%clk 0:01:08]}  Bxf3+ {[%clk 0:00:48]} 33. Kxf3 {[%clk 0:01:09]}  c2 {[%clk 0:00:48]} 34. Rc6 {[%clk 0:01:08]}  Ra3+ {[%clk 0:00:48]} 35. Ke2 {[%clk 0:01:06]}  Rc3 {[%clk 0:00:47]} 0-1

[Event "December 12 Early 2023"]
[Site "https://www.chess.com"]
[Date "2023.12.12"]
[Round "11"]
[White "Vakhidov, Shahzod"]
[Black "Topalov, Aleksandar"]
[Result "1-0"]
[Board "78"]
[TimeControl "180+1"]
[WhiteFideId "14205270"]
[BlackFideId "925659"]
[WhiteElo "2538"]
[BlackElo "2394"]
[WhiteTeam "UZB"]
[BlackTeam "SRB"]
[WhiteClock "0:00:04"]
[BlackClock "0:00:00"]

1. d4 {[%clk 0:02:59]}  Nf6 {[%clk 0:02:54]} 2. Nf3 {[%clk 0:02:58]}  g6 {[%clk 0:02:48]} 3. g3 {[%clk 0:02:58]}  Bg7 {[%clk 0:02:43]} 4. c4 {[%clk 0:02:59]}  O-O {[%clk 0:02:38]} 5. Bg2 {[%clk 0:02:59]}  c5 {[%clk 0:02:38]} 6. O-O {[%clk 0:02:59]}  d6 {[%clk 0:02:35]} 7. dxc5 {[%clk 0:02:58]}  dxc5 {[%clk 0:02:34]} 8. Ne5 {[%clk 0:02:59]}  Nbd7 {[%clk 0:02:28]} 9. Nd3 {[%clk 0:02:58]}  e5 {[%clk 0:02:04]} 10. Nc3 {[%clk 0:02:58]}  Re8 {[%clk 0:02:01]} 11. Be3 {[%clk 0:02:50]}  Bf8 {[%clk 0:01:42]} 12. Rc1 {[%clk 0:02:32]}  Qb6 {[%clk 0:01:38]} 13. Na4 {[%clk 0:02:29]}  Qc7 {[%clk 0:01:35]} 14. Nc3 {[%clk 0:02:25]}  a6 {[%clk 0:01:25]} 15. a3 {[%clk 0:02:17]}  Rb8 {[%clk 0:01:25]} 16. b4 {[%clk 0:02:09]}  b6 {[%clk 0:01:24]} 17. Nd5 {[%clk 0:01:42]}  Nxd5 {[%clk 0:01:07]} 18. cxd5 {[%clk 0:01:43]}  e4 {[%clk 0:00:57]} 19. Nf4 {[%clk 0:01:32]}  Bd6 {[%clk 0:00:55]} 20. Qc2 {[%clk 0:01:25]}  Qd8 {[%clk 0:00:51]} 21. Bxe4 {[%clk 0:01:22]}  cxb4 {[%clk 0:00:50]} 22. axb4 {[%clk 0:01:21]}  Bxb4 {[%clk 0:00:49]} 23. Bd4 {[%clk 0:01:03]}  Ne5 {[%clk 0:00:34]} 24. Bg2 {[%clk 0:00:55]}  Bd6 {[%clk 0:00:33]} 25. Qb2 {[%clk 0:00:53]}  b5 {[%clk 0:00:29]} 26. h4 {[%clk 0:00:44]}  Bb7 {[%clk 0:00:27]} 27. h5 {[%clk 0:00:37]}  Nc4 {[%clk 0:00:27]} 28. Rxc4 {[%clk 0:00:21]}  bxc4 {[%clk 0:00:26]} 29. h6 {[%clk 0:00:21]}  Bxd5 {[%clk 0:00:16]} 30. Bb6 {[%clk 0:00:18]}  Be5 {[%clk 0:00:10]} 31. Bxd8 {[%clk 0:00:16]}  Bxb2 {[%clk 0:00:10]} 32. Bxd5 {[%clk 0:00:09]}  Rbxd8 {[%clk 0:00:09]} 33. Bxc4 {[%clk 0:00:09]}  Be5 {[%clk 0:00:09]} 34. Nd3 {[%clk 0:00:06]}  Bf6 {[%clk 0:00:07]} 35. Rb1 {[%clk 0:00:05]}  Bg5 {[%clk 0:00:07]} 36. Rb7 {[%clk 0:00:04]}  Rf8 {[%clk 0:00:07]} 37. Ne5 {[%clk 0:00:04]}  Rb8 {[%clk 0:00:05]} 38. Rxf7 {[%clk 0:00:02]}  Rxf7 {[%clk 0:00:03]} 39. Nxf7 {[%clk 0:00:03]}  Bxh6 {[%clk 0:00:02]} 40. Nxh6+ {[%clk 0:00:03]}  Kg7 {[%clk 0:00:03]} 41. Ng4 {[%clk 0:00:04]}  Rb1+ {[%clk 0:00:03]} 42. Kg2 {[%clk 0:00:04]}  a5 {[%clk 0:00:02]} 43. Ne3 {[%clk 0:00:04]}  h5 {[%clk 0:00:02]} 44. f4 {[%clk 0:00:03]}  a4 {[%clk 0:00:02]} 45. Bd3 {[%clk 0:00:04]}  Rb2 {[%clk 0:00:00]} 46. Nc4 {[%clk 0:00:04]} 1-0

[Event "December 12 Early 2023"]
[Site "https://www.chess.com"]
[Date "2023.12.12"]
[Round "11"]
[White "Dinu, Dumitru-Daniel"]
[Black "Osmonbekov, Talaibek"]
[Result "1-0"]
[Board "83"]
[TimeControl "180+1"]
[WhiteFideId "1208403"]
[BlackFideId "2017253"]
[WhiteElo "2508"]
[BlackElo "2256"]
[WhiteTeam "ROU"]
[BlackTeam "USA"]
[WhiteClock "0:01:04"]
[BlackClock "0:00:22"]

1. e4 {[%clk 0:03:00]}  c5 {[%clk 0:02:58]} 2. Nf3 {[%clk 0:02:59]}  d6 {[%clk 0:02:59]} 3. d4 {[%clk 0:02:58]}  cxd4 {[%clk 0:02:59]} 4. Nxd4 {[%clk 0:02:59]}  Nf6 {[%clk 0:03:00]} 5. f3 {[%clk 0:02:59]}  g6 {[%clk 0:03:01]} 6. c4 {[%clk 0:02:59]}  Nc6 {[%clk 0:02:57]} 7. Nc3 {[%clk 0:02:58]}  Bg7 {[%clk 0:02:56]} 8. Be3 {[%clk 0:02:58]}  O-O {[%clk 0:02:52]} 9. Be2 {[%clk 0:02:58]}  Bd7 {[%clk 0:02:46]} 10. O-O {[%clk 0:02:57]}  Rc8 {[%clk 0:02:44]} 11. Rc1 {[%clk 0:02:56]}  h5 {[%clk 0:02:40]} 12. Qd2 {[%clk 0:02:51]}  Nxd4 {[%clk 0:02:10]} 13. Bxd4 {[%clk 0:02:50]}  Be6 {[%clk 0:02:10]} 14. b3 {[%clk 0:02:37]}  h4 {[%clk 0:01:48]} 15. f4 {[%clk 0:02:27]}  Qa5 {[%clk 0:01:42]} 16. f5 {[%clk 0:02:15]}  gxf5 {[%clk 0:01:38]} 17. exf5 {[%clk 0:02:14]}  Bxf5 {[%clk 0:01:38]} 18. Qg5 {[%clk 0:02:08]}  Rc5 {[%clk 0:01:25]} 19. b4 {[%clk 0:01:45]}  Qxb4 {[%clk 0:01:22]} 20. Rxf5 {[%clk 0:01:44]}  Rxf5 {[%clk 0:01:08]} 21. Qxf5 {[%clk 0:01:43]}  Qb2 {[%clk 0:01:05]} 22. Rf1 {[%clk 0:01:38]}  Qd2 {[%clk 0:00:52]} 23. Qd3 {[%clk 0:01:34]}  Qxd3 {[%clk 0:00:47]} 24. Bxd3 {[%clk 0:01:34]}  e5 {[%clk 0:00:47]} 25. Bf2 {[%clk 0:01:23]}  h3 {[%clk 0:00:47]} 26. gxh3 {[%clk 0:01:20]}  Nh5 {[%clk 0:00:46]} 27. Nd5 {[%clk 0:01:16]}  a6 {[%clk 0:00:36]} 28. Be3 {[%clk 0:01:12]}  Kh8 {[%clk 0:00:30]} 29. Rf5 {[%clk 0:01:10]}  Nf4 {[%clk 0:00:27]} 30. Bxf4 {[%clk 0:01:05]}  exf4 {[%clk 0:00:22]} 31. Rh5+ {[%clk 0:01:04]} 1-0

[Event "December 12 Early 2023"]
[Site "https://www.chess.com"]
[Date "2023.12.12"]
[Round "11"]
[White "Lopez Idarraga, Daniel Eduardo"]
[Black "Golubev, Mikhail"]
[Result "1-0"]
[Board "85"]
[TimeControl "180+1"]
[WhiteFideId "4405501"]
[BlackFideId "14100983"]
[WhiteElo "2460"]
[BlackElo "2625"]
[WhiteTeam "COL"]
[BlackTeam "UKR"]
[WhiteClock "0:00:47"]
[BlackClock "0:00:00"]

1. e4 {[%clk 0:03:00]}  c5 {[%clk 0:02:59]} 2. Nc3 {[%clk 0:03:00]}  Nc6 {[%clk 0:02:59]} 3. Bb5 {[%clk 0:02:59]}  Nd4 {[%clk 0:02:57]} 4. Nf3 {[%clk 0:02:58]}  a6 {[%clk 0:02:48]} 5. Bd3 {[%clk 0:02:56]}  Nxf3+ {[%clk 0:02:43]} 6. Qxf3 {[%clk 0:02:54]}  g6 {[%clk 0:02:44]} 7. Bc4 {[%clk 0:02:51]}  e6 {[%clk 0:02:42]} 8. d3 {[%clk 0:02:49]}  b5 {[%clk 0:02:32]} 9. Bb3 {[%clk 0:02:48]}  Bb7 {[%clk 0:02:24]} 10. h4 {[%clk 0:02:46]}  Nf6 {[%clk 0:02:12]} 11. Bg5 {[%clk 0:02:43]}  Be7 {[%clk 0:02:07]} 12. Bh6 {[%clk 0:02:15]}  Rg8 {[%clk 0:02:07]} 13. O-O-O {[%clk 0:02:12]}  Qc7 {[%clk 0:02:03]} 14. Bg5 {[%clk 0:02:09]}  Nh5 {[%clk 0:01:54]} 15. g4 {[%clk 0:02:06]}  Bxg5+ {[%clk 0:01:50]} 16. hxg5 {[%clk 0:02:05]}  Qf4+ {[%clk 0:01:43]} 17. Qxf4 {[%clk 0:02:00]}  Nxf4 {[%clk 0:01:44]} 18. Rxh7 {[%clk 0:01:59]}  Ke7 {[%clk 0:01:37]} 19. Kd2 {[%clk 0:01:56]}  Rh8 {[%clk 0:01:33]} 20. Rdh1 {[%clk 0:01:55]}  Rxh7 {[%clk 0:01:30]} 21. Rxh7 {[%clk 0:01:56]}  Rf8 {[%clk 0:01:15]} 22. a4 {[%clk 0:01:52]}  b4 {[%clk 0:01:12]} 23. Ne2 {[%clk 0:01:49]}  Nxe2 {[%clk 0:01:06]} 24. Kxe2 {[%clk 0:01:50]}  e5 {[%clk 0:01:06]} 25. Ke3 {[%clk 0:01:47]}  a5 {[%clk 0:01:04]} 26. f4 {[%clk 0:01:45]}  exf4+ {[%clk 0:01:03]} 27. Kxf4 {[%clk 0:01:46]}  d6 {[%clk 0:01:01]} 28. c3 {[%clk 0:01:44]}  Bc6 {[%clk 0:01:00]} 29. cxb4 {[%clk 0:01:42]}  axb4 {[%clk 0:00:53]} 30. a5 {[%clk 0:01:42]}  Bd7 {[%clk 0:00:53]} 31. a6 {[%clk 0:01:40]}  Be6 {[%clk 0:00:50]} 32. Bxe6 {[%clk 0:01:34]}  Kxe6 {[%clk 0:00:51]} 33. Rh1 {[%clk 0:01:33]}  Ra8 {[%clk 0:00:51]} 34. Ra1 {[%clk 0:01:34]}  Ra7 {[%clk 0:00:51]} 35. Ra5 {[%clk 0:01:29]}  Kd7 {[%clk 0:00:41]} 36. e5 {[%clk 0:01:27]}  Kc6 {[%clk 0:00:40]} 37. exd6 {[%clk 0:01:25]}  Kxd6 {[%clk 0:00:41]} 38. d4 {[%clk 0:01:23]}  c4 {[%clk 0:00:37]} 39. Ke4 {[%clk 0:01:21]}  Kc6 {[%clk 0:00:19]} 40. Rc5+ {[%clk 0:01:16]}  Kd6 {[%clk 0:00:19]} 41. Rxc4 {[%clk 0:01:17]}  Rxa6 {[%clk 0:00:19]} 42. Rxb4 {[%clk 0:01:12]}  Ra1 {[%clk 0:00:20]} 43. Rb6+ {[%clk 0:01:10]}  Ke7 {[%clk 0:00:19]} 44. Rb7+ {[%clk 0:01:10]}  Ke8 {[%clk 0:00:17]} 45. b4 {[%clk 0:01:07]}  Rg1 {[%clk 0:00:15]} 46. Kf4 {[%clk 0:01:04]}  Rb1 {[%clk 0:00:15]} 47. b5 {[%clk 0:01:03]}  Kf8 {[%clk 0:00:13]} 48. b6 {[%clk 0:01:01]}  Rb5 {[%clk 0:00:11]} 49. Ke4 {[%clk 0:00:58]}  Rxg5 {[%clk 0:00:10]} 50. Rc7 {[%clk 0:00:56]}  Rb5 {[%clk 0:00:09]} 51. b7 {[%clk 0:00:54]}  Kg7 {[%clk 0:00:08]} 52. g5 {[%clk 0:00:52]}  Rb1 {[%clk 0:00:05]} 53. d5 {[%clk 0:00:50]}  Re1+ {[%clk 0:00:04]} 54. Kf3 {[%clk 0:00:49]}  Rb1 {[%clk 0:00:05]} 55. d6 {[%clk 0:00:48]}  Kf8 {[%clk 0:00:00]} 56. Rc8+ {[%clk 0:00:47]} 1-0